bitfinex-derivatives/quotes_SOLF0:USTF0_20251023
["timestamp","ask_amount","ask_price","bid_price","bid_amount"]
[1761233571286,44.08,191.35,191.27,2.66]
[1761233571490,44.08,191.35,191.29,2.66]
[1761233571693,44.08,191.35,191.31,2.66]
[1761233572000,44.08,191.35,191.32,4.71016781]
[1761233572198,44.08,191.35,191.33,4.71016781]
[1761233572399,44.08,191.35,191.34,4.71016781]
[1761233572702,44.08,191.35,191.28,7.3634]
[1761233572998,44.08,191.35,191.29,4.70967153]
[1761233573190,44.08,191.35,191.31,2.66]
[1761233573392,44.08,191.35,191.33,2.66]
[1761233573586,44.08,191.37,191.34,4.70967153]
[1761233573791,44.08,191.37,191.29,2.66]
[1761233573996,44.08,191.37,191.3,7.3683788]
[1761233574202,44.08,191.37,191.31,7.3683788]
[1761233574498,44.08,191.37,191.33,2.66]
[1761233574694,4.00606388,191.41,191.34,4.7083788]
[1761233574897,44.08,191.38,191.3,2.66]
[1761233575094,44.08,191.38,191.32,2.66]
[1761233575300,44.08,191.39,191.33,4.70743839]
[1761233575603,44.08,191.39,191.34,4.70743839]
[1761233575798,44.08,191.39,191.35,4.70743839]
[1761233575997,4.00606388,191.41,191.32,2.66]
[1761233576206,44.08,191.38,191.34,2.66]
[1761233576403,4.83956842,191.46,191.36,2.66]
[1761233576705,48.08606388,191.46,191.37,7.36435047]
[1761233577001,48.08606388,191.46,191.38,4.70435047]
[1761233577197,48.08606388,191.46,191.39,4.70435047]
[1761233577402,48.08606388,191.46,191.37,2.66]
[1761233577602,48.08606388,191.46,191.38,4.69892837]
[1761233577902,48.08606388,191.46,191.28,15.78374978]
[1761233577903,52.9256323,191.46,191.3,2.66]
[1761233578095,44.08,191.46,191.36,2.66]
[1761233578291,44.08,191.46,191.37,7.36025262]
[1761233578495,4.6997,191.44,191.38,7.36025262]
[1761233578696,4.6997,191.44,191.4,2.61]
[1761233578894,44.08,191.46,191.4,2.61]
[1761233579301,8.8456323,191.51,191.4,7.3106]
[1761233579506,44.08,191.48,191.41,7.3031277]
[1761233579799,6.4527579,191.54,191.43,2.61]
[1761233579800,44.08,191.49,191.43,2.61]
[1761233580001,44.08,191.49,191.41,2.61]
[1761233580401,48.89956842,191.56,191.43,2.61]
[1761233580601,48.06606388,191.56,191.44,7.30026684]
[1761233580806,48.06606388,191.56,191.45,7.30026684]
[1761233580997,44.06,191.56,191.46,7.29842128]
[1761233581196,44.06,191.56,191.47,4.68842128]
[1761233581402,44.06,191.56,191.46,2.61]
[1761233581602,44.06,191.56,191.47,7.29209407]
[1761233581807,4.6971,191.55,191.47,2.61]
[1761233582005,44.06,191.56,191.38,4.78256233]
[1761233582202,44.06,191.56,191.42,2.61]
[1761233582505,44.06,191.56,191.38,4.00606388]
[1761233582506,4.6967,191.56,191.44,2.61]
[1761233582702,4.6967,191.56,191.46,2.61]
[1761233582906,4.6967,191.56,191.48,2.61]
[1761233584112,4.6967,191.56,191.47,2.61]
[1761233584410,4.6971,191.55,191.43,4.00606388]
[1761233584614,44.06,191.57,191.45,2.61]
[1761233584813,1.74545863,191.52,191.45,2.61]
[1761233585212,44.06,191.56,191.47,2.61]
[1761233585513,44.06,191.56,191.35,6.37674978]
[1761233585514,1.74545863,191.48,191.43,2.61]
[1761233585703,1.74545863,191.48,191.35,4.78256233]
[1761233585704,1.74545863,191.46,191.44,4.66464509]
[1761233585908,4.83956842,191.6,191.4,2.61]
[1761233586110,1.74545863,191.51,191.43,4.35545863]
[1761233586313,1.74545863,191.51,191.43,2.61]
[1761233586712,29.74,191.52,191.43,2.61]
[1761233586913,29.74,191.52,191.44,4.66320804]
[1761233587113,29.74,191.52,191.45,2.61]
[1761233587515,33.74092646,191.52,191.38,2.61]
[1761233587818,4.6966,191.57,191.43,2.61]
[1761233588017,4.6966,191.57,191.45,2.61]
[1761233588206,4.6966,191.57,191.47,2.61]
[1761233588710,4.6968,191.56,191.47,2.61]
[1761233588907,44.28,191.58,191.47,2.61]
[1761233590017,15.62938002,191.62,191.47,2.61]
[1761233590320,9.3893,191.65,191.47,2.61]
[1761233590321,4.00092646,191.58,191.47,2.61]
[1761233590815,4.6967,191.56,191.47,2.61]
[1761233591014,44.28,191.57,191.47,2.61]
[1761233591210,44.28,191.57,191.49,2.61]
[1761233592219,48.9766,191.57,191.49,2.61]
[1761233592415,4.83956842,191.7,191.49,2.61]
[1761233592719,4.00092646,191.67,191.52,2.61]
[1761233593510,4.6953,191.62,191.52,4.6974]
[1761233593717,4.6953,191.62,191.53,2.61]
[1761233593919,4.00092646,191.67,191.53,2.61]
[1761233594219,19.71852936,191.67,191.53,2.61]
[1761233594414,4.00092646,191.67,191.53,2.61]
[1761233594912,4.6958,191.6,191.53,2.61]
[1761233595714,4.6952,191.62,191.53,2.61]
[1761233596413,18.92,191.65,191.54,2.61]
[1761233596613,4.00092646,191.64,191.49,2.61]
[1761233596812,4.00092646,191.6,191.45,2.61]
[1761233597011,4.697,191.55,191.47,2.61]
[1761233597218,4.00092646,191.55,191.47,2.61]
[1761233597719,25.88,191.59,191.48,2.61]
[1761233598421,8.69812646,191.54,191.48,2.61]
[1761233598617,4.00092646,191.54,191.44,2.61]
[1761233599015,4.00092646,191.5,191.4,2.61]
[1761233599216,4.00092646,191.5,191.39,0.28092]
[1761233599217,4.00092646,191.5,191.41,7.25388088]
[1761233599519,4.00092646,191.5,191.39,0.28092]
[1761233599520,4.00092646,191.5,191.42,7.25388088]
[1761233599715,4.00092646,191.5,191.42,2.61]
[1761233600116,4.6983,191.5,191.42,2.61]
[1761233600318,4.00092646,191.51,191.43,4.64338298]
[1761233600515,4.00092646,191.51,191.44,2.61]
[1761233600723,4.00092646,191.59,191.46,2.61]
[1761233601025,4.00092646,191.59,191.48,2.61]
[1761233601226,4.00092646,191.59,191.5,2.61]
[1761233601421,4.00092646,191.59,191.5,4.698]
[1761233601720,4.00092646,191.59,191.51,2.61]
[1761233602121,4.00092646,191.65,191.52,4.63653158]
[1761233602325,4.00092646,191.65,191.53,2.61]
[1761233602928,4.6954,191.62,191.53,7.3072]
[1761233603227,4.6954,191.62,191.54,2.61]
[1761233603822,4.00092646,191.65,191.54,2.61]
[1761233604021,4.00092646,191.61,191.54,2.61]
[1761233604221,4.6961,191.59,191.54,2.61]
[1761233604625,4.6961,191.59,191.5,4.698]
[1761233605025,4.6961,191.59,191.51,7.24871527]
[1761233605331,4.6961,191.59,191.52,2.61]
[1761233605828,4.00092646,191.53,191.4,4.78256233]
[1761233606026,4.00092646,191.49,191.41,7.24990643]
[1761233606231,4.00092646,191.49,191.41,2.61]
[1761233606431,4.00092646,191.49,191.39,0.28092]
[1761233606432,4.00092646,191.49,191.42,7.25908028]
[1761233606625,4.00092646,191.49,191.43,4.64908028]
[1761233606825,8.69942646,191.49,191.42,2.61]
[1761233607021,4.00092646,191.49,191.42,2.61]
[1761233607226,4.00092646,191.49,191.39,0.28092]
[1761233607534,4.00092646,191.49,191.4,4.65353566]
[1761233607831,4.00092646,191.49,191.41,7.38476737]
[1761233608025,4.00092646,191.5,191.42,7.38476737]
[1761233608228,4.00092646,191.5,191.43,4.65476737]
[1761233608428,8.69922646,191.5,191.42,2.73]
[1761233608732,8.69922646,191.5,191.43,4.65497119]
[1761233608932,8.69922646,191.5,191.42,2.73]
[1761233608933,8.69922646,191.5,191.44,4.65497119]
[1761233609129,8.69922646,191.5,191.42,2.73]
[1761233609433,8.69922646,191.5,191.43,7.42497593]
[1761233609634,8.69922646,191.5,191.44,4.65497593]
[1761233609827,8.69922646,191.5,191.43,2.77]
[1761233610133,4.6983,191.5,191.44,4.65684513]
[1761233610330,4.6983,191.5,191.43,2.77]
[1761233610534,4.6983,191.5,191.44,4.65846249]
[1761233610833,4.6977,191.52,191.43,2.77]
[1761233611035,4.6977,191.52,191.44,4.65853339]
[1761233611327,4.6977,191.52,191.45,4.66054483]
[1761233611532,4.6977,191.52,191.44,2.62]
[1761233611733,4.6977,191.52,191.45,4.66074857]
[1761233611927,4.6977,191.52,191.44,2.62]
[1761233612128,4.698,191.51,191.45,4.6634049]
[1761233612335,4.698,191.51,191.44,2.62]
[1761233613531,4.6983,191.5,191.44,2.62]
[1761233614034,4.818522,191.64,191.45,6.62092646]
[1761233614231,4.00092646,191.63,191.47,2.62]
[1761233614430,4.00092646,191.63,191.45,4.00092646]
[1761233614431,4.00092646,191.63,191.53,2.62]
[1761233614629,4.00092646,191.63,191.54,4.67144716]
[1761233614834,4.00092646,191.64,191.53,2.62]
[1761233615034,4.00092646,191.65,191.54,4.6671004]
[1761233615235,4.00092646,191.65,191.53,2.62]
[1761233615536,4.00092646,191.65,191.54,7.28968212]
[1761233615733,4.00092646,191.65,191.55,4.66968212]
[1761233616035,4.00092646,191.65,191.54,2.62]
[1761233616230,4.00092646,191.65,191.55,4.6698814]
[1761233616430,4.00092646,191.65,191.54,2.62]
[1761233616627,4.00092646,191.65,191.55,4.67266391]
[1761233616826,4.818522,191.72,191.56,2.62]
[1761233617030,4.00092646,191.69,191.57,7.29138732]
[1761233617224,4.818522,191.73,191.58,4.67138732]
[1761233617225,4.00092646,191.6,191.58,4.67138732]
[1761233617425,4.00092646,191.64,191.51,2.62]
[1761233617736,4.00092646,191.64,191.53,2.62]
[1761233617937,4.00092646,191.64,191.55,2.62]
[1761233618247,4.00092646,191.65,191.56,4.67535032]
[1761233618541,4.00092646,191.65,191.57,4.67535032]
[1761233618736,4.00092646,191.61,191.51,2.62]
[1761233618940,4.00092646,191.61,191.52,4.66686741]
[1761233619129,4.00092646,191.61,191.53,4.66686741]
[1761233619326,4.00092646,191.61,191.54,4.66686741]
[1761233619627,4.00092646,191.57,191.45,2.62]
[1761233619835,4.00092646,191.57,191.47,2.62]
[1761233620038,4.00092646,191.57,191.49,2.62]
[1761233620337,4.00092646,191.57,191.51,2.62]
[1761233620538,4.00092646,191.57,191.52,7.291729]
[1761233620731,4.00092646,191.57,191.53,4.671729]
[1761233620930,44.8,191.64,191.54,4.671729]
[1761233621240,4.00092646,191.59,191.52,2.62]
[1761233621540,4.00092646,191.59,191.53,4.68047549]
[1761233621740,4.6967,191.56,191.47,2.62]
[1761233621938,4.6967,191.56,191.48,4.68139337]
[1761233622239,4.6967,191.56,191.49,4.68139337]
[1761233622438,4.6967,191.56,191.5,7.30139337]
[1761233622631,4.818522,191.63,191.51,4.68139337]
[1761233622943,8.81944846,191.71,191.58,2.62]
[1761233623138,37.218522,191.74,191.6,2.62]
[1761233623334,32.4,191.74,191.63,2.62]
[1761233623537,32.4,191.74,191.64,4.68139337]
[1761233623737,4.6929,191.72,191.65,4.68139337]
[1761233623940,4.6929,191.72,191.66,4.68139337]
[1761233624139,32.4,191.74,191.63,2.62]
[1761233624340,32.4,191.74,191.64,4.67347486]
[1761233624540,32.4,191.74,191.65,4.67347486]
[1761233624739,32.4,191.74,191.66,4.67347486]
[1761233625036,4.818522,191.72,191.56,4.00092646]
[1761233625242,4.818522,191.76,191.61,2.62]
[1761233625442,4.818522,191.76,191.62,7.29433466]
[1761233625640,4.00092646,191.74,191.63,4.67433466]
[1761233625842,4.00092646,191.74,191.64,4.67433466]
[1761233626046,4.00092646,191.74,191.62,2.62]
[1761233626238,4.00092646,191.74,191.63,4.6716912]
[1761233626438,4.00092646,191.74,191.62,2.62]
[1761233626639,4.00092646,191.74,191.63,4.66993243]
[1761233626840,4.00092646,191.74,191.62,2.62]
[1761233627045,4.818522,191.75,191.63,4.67018934]
[1761233627244,4.818522,191.76,191.64,4.67010164]
[1761233627544,37.55944846,191.78,191.65,4.66728782]
[1761233627743,6.4527579,191.8,191.56,4.75731499]
[1761233627744,4.818522,191.8,191.68,4.00092646]
[1761233627942,4.818522,191.86,191.7,2.62]
[1761233628144,4.6905,191.81,191.71,11.28821428]
[1761233628342,4.818522,191.88,191.72,4.66728782]
[1761233628640,4.6907,191.81,191.73,4.66728782]
[1761233628941,4.00092646,191.85,191.66,6.62092646]
[1761233629142,4.818522,191.85,191.67,4.65611072]
[1761233629445,4.6913,191.78,191.69,2.62]
[1761233629644,11.24,191.84,191.71,2.62]
[1761233629950,11.24,191.84,191.72,4.65611072]
[1761233630144,11.24,191.84,191.74,2.62]
[1761233630541,4.818522,191.91,191.74,2.62]
[1761233630742,14.193422,191.94,191.76,2.62]
[1761233630945,4.00092646,191.91,191.76,2.62]
[1761233631942,4.6903,191.82,191.76,2.62]
[1761233632240,4.00092646,191.87,191.76,2.62]
[1761233632444,4.00092646,191.87,191.71,2.62]
[1761233632645,4.00092646,191.87,191.7,4.00092646]
[1761233632646,4.6907,191.81,191.72,7.2558014]
[1761233632847,4.6907,191.81,191.72,2.62]
[1761233633244,4.818522,191.92,191.72,2.62]
[1761233633444,4.00092646,191.85,191.72,2.62]
[1761233633646,4.00092646,191.85,191.66,2.62]
[1761233633947,4.00092646,191.81,191.66,2.62]
[1761233634147,45.2,191.8,191.66,2.62]
[1761233634346,4.6924,191.74,191.66,2.62]
[1761233634646,4.00092646,191.77,191.66,2.62]
[1761233634840,4.00092646,191.77,191.56,4.75731499]
[1761233634841,4.00092646,191.77,191.62,2.62]
[1761233635645,45.2,191.8,191.62,2.62]
[1761233635646,4.00092646,191.73,191.62,2.62]
[1761233635846,4.00092646,191.73,191.58,6.62092646]
[1761233636042,4.00092646,191.73,191.59,7.25886265]
[1761233636244,4.00092646,191.73,191.6,4.63886265]
[1761233636442,4.00092646,191.73,191.59,2.62]
[1761233636642,4.00092646,191.73,191.6,4.63862341]
[1761233636847,6.574296,191.75,191.59,2.62]
[1761233637251,6.574296,191.75,191.61,2.62]
[1761233637455,6.574296,191.78,191.61,2.62]
[1761233637654,6.574296,191.78,191.63,2.62]
[1761233639252,45.2,191.8,191.63,2.62]
[1761233639659,45.2,191.8,191.65,2.62]
[1761233640153,45.2,191.8,191.66,2.62]
[1761233640847,45.2,191.8,191.67,2.62]
[1761233641046,45.2,191.8,191.69,2.62]
[1761233641846,414.0,191.92,191.72,6.574296]
[1761233642050,6.574296,191.94,191.74,2.62]
[1761233642245,45.12,191.95,191.76,6.574296]
[1761233642445,150.36,191.96,191.79,2.62]
[1761233643256,6.574296,191.93,191.79,2.62]
[1761233643646,150.36,191.96,191.79,2.62]
[1761233643843,45.16,191.95,191.79,2.62]
[1761233645156,45.16,191.95,191.82,2.62]
[1761233645549,45.16,191.95,191.77,2.62]
[1761233648258,45.16,191.95,191.7,2.62]
[1761233648259,6.574296,191.89,191.7,2.62]
[1761233648552,6.574296,191.85,191.65,2.62]
[1761233648748,6.574296,191.85,191.67,2.62]
[1761233648749,5.64,191.84,191.67,2.62]
[1761233649148,6.574296,191.81,191.62,2.62]
[1761233649353,21.31,191.84,191.62,2.62]
[1761233649354,6.574296,191.79,191.62,2.62]
[1761233649547,6.574296,191.83,191.64,2.62]
[1761233650553,6.574296,191.82,191.64,2.62]
[1761233650751,0.9079761,191.89,191.65,4.6944]
[1761233650945,6.574296,191.87,191.66,2.62]
[1761233651144,150.36,191.96,191.68,2.62]
[1761233651145,6.574296,191.9,191.68,2.62]
[1761233651351,6.42,191.89,191.72,4.6927]
[1761233651547,6.42,191.89,191.73,2.62]
[1761233652350,6.42,191.89,191.74,2.62]
[1761233653144,150.36,191.96,191.76,2.62]
[1761233653145,45.14,191.94,191.76,2.62]
[1761233653655,45.14,191.94,191.78,2.62]
[1761233654151,45.14,191.94,191.72,4.6927]
[1761233654152,67.384296,191.94,191.72,4.6927]
[1761233654358,67.384296,191.94,191.74,2.62]
[1761233656056,51.714296,191.94,191.76,2.62]
[1761233656251,45.12,191.93,191.77,2.62]
[1761233656453,45.12,191.92,191.78,2.62]
[1761233657560,195.48,191.96,191.82,2.62]
[1761233657762,150.36,191.96,191.83,4.61513543]
[1761233657959,195.48,191.96,191.83,2.62]
[1761233658157,195.48,191.96,191.84,7.23464317]
[1761233658459,195.48,191.96,191.84,2.62]
[1761233660163,195.48,191.96,191.85,4.61559307]
[1761233660353,195.48,191.96,191.84,2.62]
[1761233661465,195.48,191.96,191.79,2.62]
[1761233661763,195.48,191.96,191.8,7.23720445]
[1761233662058,195.48,191.96,191.8,2.62]
[1761233662258,195.48,191.96,191.81,4.61871502]
[1761233662462,195.48,191.96,191.82,2.62]
[1761233662762,195.48,191.96,191.83,2.62]
[1761233663163,6.574296,191.95,191.83,2.62]
[1761233663652,195.48,191.96,191.83,2.62]
[1761233664260,195.48,191.96,191.84,4.62040499]
[1761233664560,195.48,191.96,191.83,2.62]
[1761233664762,195.48,191.96,191.85,2.62]
[1761233664964,45.12,191.96,191.85,2.62]
[1761233667161,45.12,191.96,191.8,2.81]
[1761233667956,6.574296,191.95,191.8,2.81]
[1761233670157,45.06,191.9,191.74,2.81]
[1761233670363,45.06,191.89,191.74,2.81]
[1761233670564,45.06,191.89,191.75,2.85]
[1761233672059,45.06,191.89,191.76,2.85]
[1761233672261,45.04,191.92,191.76,2.85]
[1761233672461,45.04,191.91,191.76,2.85]
[1761233673662,51.614296,191.91,191.76,2.85]
[1761233674759,45.04,191.91,191.76,2.85]
[1761233674960,6.574296,191.9,191.76,2.85]
[1761233676167,6.574296,191.89,191.71,2.85]
[1761233676974,6.574296,191.89,191.74,2.85]
[1761233678574,22.244296,191.89,191.74,2.85]
[1761233678769,6.574296,191.85,191.69,3.20027]
[1761233679276,22.244296,191.85,191.69,3.20027]
[1761233679670,22.244296,191.85,191.69,0.35027]
[1761233679671,6.574296,191.81,191.69,0.35027]
[1761233679968,45.04,191.8,191.69,0.35027]
[1761233681678,45.04,191.8,191.69,3.20027]
[1761233683172,15.67,191.83,191.7,4.67189419]
[1761233683377,60.71,191.82,191.69,3.20027]
[1761233683580,60.71,191.82,191.7,4.67376031]
[1761233683775,60.71,191.82,191.69,3.20027]
[1761233683977,45.02,191.81,191.7,4.6740839]
[1761233684181,45.02,191.81,191.69,0.35027]
[1761233684384,45.02,191.81,191.7,4.67646643]
[1761233684677,45.02,191.81,191.69,0.35027]
[1761233685588,60.69,191.81,191.69,0.35027]
[1761233686678,22.244296,191.8,191.69,0.35027]
[1761233688596,22.244296,191.76,191.69,0.35027]
[1761233690193,22.244296,191.75,191.69,0.35027]
[1761233690497,6.574296,191.71,191.55,2.85]
[1761233690790,44.96,191.7,191.57,2.85]
[1761233691000,6.4527579,191.79,191.5,6.574296]
[1761233691001,45.0,191.69,191.59,2.85]
[1761233691200,45.0,191.7,191.61,2.85]
[1761233691385,45.0,191.7,191.63,2.85]
[1761233691986,45.02,191.69,191.55,2.85]
[1761233692200,45.02,191.68,191.57,2.85]
[1761233692390,45.02,191.67,191.58,4.67185734]
[1761233692594,45.02,191.67,191.57,2.85]
[1761233692790,45.02,191.67,191.58,4.6721035]
[1761233692995,45.02,191.67,191.59,7.52076502]
[1761233693190,45.02,191.67,191.59,2.85]
[1761233693494,45.0,191.69,191.61,2.85]
[1761233693695,45.0,191.69,191.62,4.66561186]
[1761233693900,45.02,191.7,191.61,2.85]
[1761233694101,45.02,191.7,191.62,4.6656053]
[1761233694301,45.02,191.7,191.61,2.85]
[1761233695495,45.02,191.7,191.55,2.85]
[1761233695699,45.02,191.7,191.56,7.51553095]
[1761233695904,45.02,191.7,191.57,4.66553095]
[1761233696093,45.02,191.7,191.56,2.85]
[1761233696292,45.02,191.7,191.57,4.66395566]
[1761233696494,45.02,191.7,191.56,2.85]
[1761233696798,3.9960838,191.67,191.56,2.85]
[1761233697997,64.6860838,191.7,191.56,2.85]
[1761233699104,3.9960838,191.67,191.56,2.85]
[1761233700602,64.6860838,191.7,191.56,2.85]
[1761233701302,3.9960838,191.66,191.51,2.84]
[1761233701603,3.9960838,191.66,191.53,2.84]
[1761233701799,3.9960838,191.62,191.5,2.84]
[1761233702004,44.96,191.61,191.5,2.84]
[1761233702205,44.96,191.61,191.52,2.84]
[1761233702704,44.98,191.62,191.52,2.84]
[1761233703405,44.98,191.62,191.49,0.30507]
[1761233703606,3.9960838,191.61,191.49,0.30507]
[1761233704109,3.9960838,191.64,191.5,2.84]
[1761233704404,44.96,191.63,191.5,2.84]
[1761233704705,44.98,191.62,191.5,2.84]
[1761233706012,15.6085851,191.76,191.49,4.3011538]
[1761233706013,429.67,191.74,191.54,2.84]
[1761233706202,48.9560838,191.7,191.56,2.84]
[1761233706701,44.98,191.71,191.58,2.84]
[1761233707008,45.0,191.73,191.6,2.84]
[1761233709417,45.0,191.73,191.61,7.49115396]
[1761233709610,45.0,191.73,191.61,2.84]
[1761233710807,3.9960838,191.7,191.56,2.84]
[1761233711113,3.9960838,191.66,191.56,2.84]
[1761233711313,44.94,191.65,191.56,2.84]
[1761233711808,44.94,191.65,191.57,4.65301443]
[1761233712008,44.94,191.65,191.57,2.84]
[1761233712510,44.94,191.65,191.59,2.84]
[1761233713104,44.94,191.65,191.54,4.6969]
[1761233713105,48.9160838,191.7,191.61,2.84]
[1761233713312,44.94,191.71,191.63,2.84]
[1761233713508,3.9960838,191.77,191.65,2.84]
[1761233713716,44.94,191.76,191.65,2.84]
[1761233713910,44.94,191.76,191.67,2.84]
[1761233714415,3.9960838,191.77,191.67,2.84]
[1761233714611,44.94,191.78,191.67,2.84]
[1761233715207,44.94,191.78,191.68,7.48205099]
[1761233715407,44.94,191.78,191.69,4.64257427]
[1761233715609,48.9160838,191.81,191.71,2.84]
[1761233716012,3.9960838,191.72,191.62,2.84]
[1761233716214,44.92,191.71,191.62,2.84]
[1761233716413,45.12,191.71,191.62,2.84]
[1761233716613,45.12,191.71,191.63,4.64833646]
[1761233716809,45.12,191.71,191.62,2.84]
[1761233717211,3.9960838,191.72,191.63,4.65066063]
[1761233717414,24.28,191.73,191.64,7.48916941]
[1761233717612,24.28,191.73,191.65,4.64916941]
[1761233717816,24.28,191.73,191.66,4.64916941]
[1761233718016,24.28,191.73,191.64,2.84]
[1761233718211,24.28,191.73,191.66,2.84]
[1761233718423,24.28,191.73,191.67,4.64827236]
[1761233718614,24.28,191.73,191.66,2.84]
[1761233719321,24.28,191.73,191.67,4.65649775]
[1761233719515,24.28,191.73,191.66,2.84]
[1761233719711,3.9960838,191.71,191.61,2.84]
[1761233720020,3.9960838,191.71,191.62,7.49681304]
[1761233720225,3.9960838,191.71,191.63,7.49681304]
[1761233720421,3.9960838,191.71,191.64,4.65681304]
[1761233720717,3.9960838,191.71,191.63,2.84]
[1761233720718,3.9960838,191.71,191.65,4.65681304]
[1761233720911,3.9960838,191.71,191.63,2.84]
[1761233721113,3.9960838,191.71,191.64,7.49899382]
[1761233721424,3.9960838,191.75,191.66,2.84]
[1761233721624,3.9960838,191.75,191.67,4.65899382]
[1761233721825,3.9960838,191.75,191.68,4.65899382]
[1761233722023,3.9960838,191.75,191.66,2.84]
[1761233722222,3.9960838,191.75,191.62,2.84]
[1761233722423,3.9960838,191.71,191.63,4.66527323]
[1761233722727,3.9960838,191.67,191.64,4.66527323]
[1761233722928,3.9960838,191.67,191.57,2.84]
[1761233723121,3.9960838,191.71,191.58,7.50624023]
[1761233723328,3.9960838,191.71,191.59,4.66624023]
[1761233723525,3.9960838,191.67,191.6,4.66624023]
[1761233723829,49.0560838,191.67,191.61,4.66624023]
[1761233724030,3.9960838,191.63,191.49,7.59029603]
[1761233724223,3.9960838,191.59,191.49,2.84]
[1761233724523,3.9960838,191.51,191.44,2.84]
[1761233727527,4.80980946,191.61,191.44,2.84]
[1761233727725,3.9960838,191.59,191.44,2.84]
[1761233727922,3.9960838,191.58,191.44,2.84]
[1761233728324,3.9960838,191.58,191.46,2.84]
[1761233728929,19.1,191.6,191.46,2.84]
[1761233729428,3.9960838,191.62,191.48,2.66]
[1761233729629,4.80980946,191.7,191.48,2.66]
[1761233729630,3.9960838,191.64,191.48,2.66]
[1761233729931,3.9960838,191.64,191.52,2.68]
[1761233732826,3.9960838,191.6,191.52,2.68]
[1761233734333,3.9960838,191.6,191.43,2.68]
[1761233734637,3.9960838,191.56,191.43,2.68]
[1761233735533,3.9960838,191.6,191.43,4.75029603]
[1761233735744,3.9960838,191.6,191.44,2.68]
[1761233737040,3.9960838,191.56,191.44,2.68]
[1761233738742,3.9960838,191.6,191.44,2.68]
[1761233738939,19.6660838,191.6,191.44,2.68]
[1761233739340,15.67,191.63,191.44,2.68]
[1761233739539,3.9960838,191.59,191.44,2.68]
[1761233740841,20.47980946,191.61,191.44,2.68]
[1761233741044,3.9960838,191.56,191.44,2.68]
[1761233741832,3.9960838,191.59,191.44,2.68]
[1761233742531,3.9960838,191.6,191.45,2.68]
[1761233742737,3.9960838,191.61,191.45,2.68]
[1761233742938,27.1760838,191.62,191.45,2.68]
[1761233743134,27.1760838,191.62,191.47,2.68]
[1761233745042,42.8460838,191.62,191.47,2.68]
[1761233745347,27.1760838,191.62,191.47,2.68]
[1761233746538,42.8460838,191.62,191.47,2.68]
[1761233747954,3.9960838,191.58,191.47,2.68]
[1761233748252,3.9960838,191.62,191.47,2.68]
[1761233748851,3.9960838,191.63,191.47,2.68]
[1761233750951,3.9960838,191.63,191.47,7.379]
[1761233751252,27.07,191.65,191.48,2.68]
[1761233751445,3.9960838,191.63,191.48,2.68]
[1761233751652,3.9960838,191.63,191.49,2.68]
[1761233757049,3.9960838,191.63,191.5,2.68]
[1761233757856,3.9960838,191.59,191.47,2.68]
[1761233758652,6.58285833,191.61,191.47,2.68]
[1761233760058,11.4,191.65,191.47,2.68]
[1761233760356,17.98285833,191.65,191.47,2.68]
[1761233761062,33.65285833,191.65,191.48,2.87]
[1761233761355,4.6976,191.54,191.48,2.87]
[1761233761560,4.6976,191.54,191.42,2.87]
[1761233761763,4.6976,191.54,191.43,2.87]
[1761233761954,4.6976,191.54,191.44,2.87]